[Event "Titled Tuesday Blitz August 15 Early 2023"]
[White "Postlmayer, Jakob"]
[Black "Demchenko, Anton"]
[WhiteFideId "1643622"]
[BlackFideId "4160258"]
[WhiteElo "2547"]
[BlackElo "2912"]
[Result "0-1"]
[Round "2"]
[TimeControl "180+1"]
[Date "2023.08.15"]
[WhiteClock "0:00:11"]
[BlackClock "0:01:34"]
[Board "41"]

1. d4 {[%clk 0:03:00]}  Nf6 {[%clk 0:02:55]} 2. Nf3 {[%clk 0:03:01]}  e6 {[%clk 0:02:54]} 3. c4 {[%clk 0:03:00]}  b6 {[%clk 0:02:52]} 4. a3 {[%clk 0:02:59]}  Bb7 {[%clk 0:02:52]} 5. Nc3 {[%clk 0:03:00]}  d5 {[%clk 0:02:52]} 6. cxd5 {[%clk 0:03:00]}  Nxd5 {[%clk 0:02:52]} 7. e3 {[%clk 0:03:00]}  Nd7 {[%clk 0:02:41]} 8. Bd3 {[%clk 0:02:58]}  g6 {[%clk 0:02:41]} 9. h4 {[%clk 0:02:57]}  h6 {[%clk 0:02:40]} 10. Qc2 {[%clk 0:02:51]}  Bg7 {[%clk 0:02:39]} 11. Bd2 {[%clk 0:02:18]}  c5 {[%clk 0:02:37]} 12. dxc5 {[%clk 0:01:56]}  O-O {[%clk 0:02:34]} 13. cxb6 {[%clk 0:01:49]}  Nc5 {[%clk 0:02:31]} 14. Be2 {[%clk 0:01:31]}  Qxb6 {[%clk 0:02:26]} 15. O-O {[%clk 0:01:26]}  Rac8 {[%clk 0:02:23]} 16. Rac1 {[%clk 0:01:25]}  Nb3 {[%clk 0:02:18]} 17. Rcd1 {[%clk 0:01:07]}  Nxd2 {[%clk 0:02:16]} 18. Qxd2 {[%clk 0:01:02]}  Bxc3 {[%clk 0:02:08]} 19. bxc3 {[%clk 0:01:03]}  Nxc3 {[%clk 0:02:08]} 20. Rc1 {[%clk 0:01:00]}  Nxe2+ {[%clk 0:02:08]} 21. Qxe2 {[%clk 0:01:01]}  Ba6 {[%clk 0:02:09]} 22. Qe1 {[%clk 0:00:53]}  Bxf1 {[%clk 0:02:08]} 23. Qxf1 {[%clk 0:00:54]}  Rxc1 {[%clk 0:02:01]} 24. Qxc1 {[%clk 0:00:55]}  Rb8 {[%clk 0:01:58]} 25. Qc3 {[%clk 0:00:52]}  Qd6 {[%clk 0:01:57]} 26. g3 {[%clk 0:00:51]}  Qd5 {[%clk 0:01:56]} 27. Kg2 {[%clk 0:00:50]}  a5 {[%clk 0:01:52]} 28. Qc2 {[%clk 0:00:44]}  Rb3 {[%clk 0:01:43]} 29. a4 {[%clk 0:00:32]}  Rb4 {[%clk 0:01:37]} 30. Qe2 {[%clk 0:00:17]}  Rxa4 {[%clk 0:01:36]} 31. Kh2 {[%clk 0:00:11]}  Ra2 {[%clk 0:01:34]} 0-1


[Site "https://www.chess.com"]

[Event "Titled Tuesday Blitz August 15 Early 2023"]
[White "Grigorjev, Iljya"]
[Black "Plotnikov, Pavel"]
[WhiteFideId "24159565"]
[BlackFideId "4170342"]
[WhiteElo "2908"]
[BlackElo "2546"]
[Result "1-0"]
[Round "2"]
[TimeControl "180+1"]
[Date "2023.08.15"]
[WhiteClock "0:00:22"]
[BlackClock "0:00:09"]
[Board "42"]

1. d4 {[%clk 0:03:00]}  Nf6 {[%clk 0:02:56]} 2. c4 {[%clk 0:03:01]}  g6 {[%clk 0:02:55]} 3. Nc3 {[%clk 0:03:01]}  Bg7 {[%clk 0:02:54]} 4. e4 {[%clk 0:03:01]}  d6 {[%clk 0:02:54]} 5. h3 {[%clk 0:03:01]}  O-O {[%clk 0:02:53]} 6. Be3 {[%clk 0:03:02]}  e5 {[%clk 0:02:40]} 7. d5 {[%clk 0:03:02]}  Na6 {[%clk 0:02:33]} 8. g4 {[%clk 0:02:52]}  Nc5 {[%clk 0:02:33]} 9. f3 {[%clk 0:02:52]}  c6 {[%clk 0:02:31]} 10. b4 {[%clk 0:02:39]}  cxd5 {[%clk 0:02:23]} 11. cxd5 {[%clk 0:02:40]}  Ncd7 {[%clk 0:02:08]} 12. a3 {[%clk 0:02:40]}  a5 {[%clk 0:02:04]} 13. Bb5 {[%clk 0:02:37]}  Nb6 {[%clk 0:01:55]} 14. Nge2 {[%clk 0:02:22]}  Bd7 {[%clk 0:01:54]} 15. Bd3 {[%clk 0:01:51]}  Qc7 {[%clk 0:01:37]} 16. Rc1 {[%clk 0:01:42]}  axb4 {[%clk 0:01:33]} 17. Nb5 {[%clk 0:01:39]}  Qd8 {[%clk 0:01:26]} 18. axb4 {[%clk 0:01:39]}  Ne8 {[%clk 0:01:03]} 19. Nc7 {[%clk 0:01:39]}  Nxc7 {[%clk 0:00:59]} 20. Bxb6 {[%clk 0:01:40]}  Qh4+ {[%clk 0:00:55]} 21. Bf2 {[%clk 0:01:27]}  Qd8 {[%clk 0:00:53]} 22. h4 {[%clk 0:01:14]}  Na6 {[%clk 0:00:38]} 23. Qd2 {[%clk 0:01:13]}  f5 {[%clk 0:00:35]} 24. g5 {[%clk 0:00:50]}  fxe4 {[%clk 0:00:34]} 25. fxe4 {[%clk 0:00:51]}  Rxf2 {[%clk 0:00:30]} 26. Kxf2 {[%clk 0:00:51]}  Qb6+ {[%clk 0:00:31]} 27. Kg3 {[%clk 0:00:45]}  Qxb4 {[%clk 0:00:23]} 28. Qxb4 {[%clk 0:00:41]}  Nxb4 {[%clk 0:00:24]} 29. Bb1 {[%clk 0:00:35]}  Ra3+ {[%clk 0:00:24]} 30. Rc3 {[%clk 0:00:35]}  Ra1 {[%clk 0:00:16]} 31. Rc7 {[%clk 0:00:33]}  Bb5 {[%clk 0:00:15]} 32. Nc3 {[%clk 0:00:33]}  Bd3 {[%clk 0:00:14]} 33. Rxb7 {[%clk 0:00:33]}  Ra3 {[%clk 0:00:11]} 34. Rb8+ {[%clk 0:00:29]}  Bf8 {[%clk 0:00:10]} 35. Rxb4 {[%clk 0:00:21]}  Rxc3 {[%clk 0:00:10]} 36. Bxd3 {[%clk 0:00:20]}  Rxd3+ {[%clk 0:00:11]} 37. Kf2 {[%clk 0:00:19]}  Rd2+ {[%clk 0:00:10]} 38. Ke3 {[%clk 0:00:19]}  Rg2 {[%clk 0:00:10]} 39. Rf1 {[%clk 0:00:18]}  Rg3+ {[%clk 0:00:09]} 40. Rf3 {[%clk 0:00:17]}  Rxf3+ {[%clk 0:00:09]} 41. Kxf3 {[%clk 0:00:18]}  Kf7 {[%clk 0:00:09]} 42. Rb7+ {[%clk 0:00:19]}  Be7 {[%clk 0:00:09]} 43. Ke2 {[%clk 0:00:18]}  Ke8 {[%clk 0:00:10]} 44. Kd3 {[%clk 0:00:18]}  Kf7 {[%clk 0:00:10]} 45. Kc4 {[%clk 0:00:18]}  Ke8 {[%clk 0:00:10]} 46. Kb5 {[%clk 0:00:19]}  Kf8 {[%clk 0:00:09]} 47. Kc6 {[%clk 0:00:19]}  h6 {[%clk 0:00:10]} 48. gxh6 {[%clk 0:00:19]}  Bxh4 {[%clk 0:00:10]} 49. Rb8+ {[%clk 0:00:19]}  Kf7 {[%clk 0:00:09]} 50. h7 {[%clk 0:00:20]}  Bf6 {[%clk 0:00:10]} 51. h8=Q {[%clk 0:00:20]}  Bxh8 {[%clk 0:00:10]} 52. Rxh8 {[%clk 0:00:21]}  g5 {[%clk 0:00:09]} 53. Kxd6 {[%clk 0:00:22]} 1-0


[Site "https://www.chess.com"]

[Event "Titled Tuesday Blitz August 15 Early 2023"]
[White "Bacrot, Etienne"]
[Black "Eynullayev, Altay"]
[WhiteFideId "605506"]
[BlackFideId "13413562"]
[WhiteElo "2874"]
[BlackElo "2541"]
[Result "0-1"]
[Round "2"]
[TimeControl "180+1"]
[Date "2023.08.15"]
[WhiteClock "0:00:13"]
[BlackClock "0:00:03"]
[Board "48"]

1. e4 {[%clk 0:03:00]}  c5 {[%clk 0:02:58]} 2. Nf3 {[%clk 0:03:00]}  d6 {[%clk 0:02:58]} 3. Bb5+ {[%clk 0:03:00]}  Nc6 {[%clk 0:02:58]} 4. O-O {[%clk 0:02:59]}  Bd7 {[%clk 0:02:58]} 5. Re1 {[%clk 0:02:58]}  Nf6 {[%clk 0:02:58]} 6. c3 {[%clk 0:02:58]}  a6 {[%clk 0:02:58]} 7. Bf1 {[%clk 0:02:58]}  Bg4 {[%clk 0:02:59]} 8. h3 {[%clk 0:02:57]}  Bxf3 {[%clk 0:02:59]} 9. Qxf3 {[%clk 0:02:58]}  g6 {[%clk 0:02:59]} 10. d3 {[%clk 0:02:58]}  Bg7 {[%clk 0:02:59]} 11. Nd2 {[%clk 0:02:58]}  O-O {[%clk 0:02:58]} 12. Qd1 {[%clk 0:02:57]}  b5 {[%clk 0:02:57]} 13. Nf3 {[%clk 0:02:56]}  Nd7 {[%clk 0:02:54]} 14. d4 {[%clk 0:02:56]}  b4 {[%clk 0:02:54]} 15. Be3 {[%clk 0:02:48]}  Qa5 {[%clk 0:02:45]} 16. Qd3 {[%clk 0:02:11]}  Rab8 {[%clk 0:02:43]} 17. Qxa6 {[%clk 0:01:49]}  Qxa6 {[%clk 0:02:40]} 18. Bxa6 {[%clk 0:01:50]}  cxd4 {[%clk 0:02:20]} 19. cxd4 {[%clk 0:01:49]}  e5 {[%clk 0:02:18]} 20. d5 {[%clk 0:01:46]}  Nd4 {[%clk 0:02:18]} 21. Nxd4 {[%clk 0:01:20]}  exd4 {[%clk 0:02:17]} 22. Bf4 {[%clk 0:01:19]}  Rb6 {[%clk 0:02:17]} 23. Bf1 {[%clk 0:01:14]}  Nc5 {[%clk 0:02:04]} 24. e5 {[%clk 0:01:02]}  dxe5 {[%clk 0:01:52]} 25. Bxe5 {[%clk 0:01:02]}  Ra8 {[%clk 0:01:46]} 26. Bc4 {[%clk 0:00:53]}  Bxe5 {[%clk 0:01:38]} 27. Rxe5 {[%clk 0:00:52]}  Na4 {[%clk 0:01:32]} 28. Re2 {[%clk 0:00:42]}  Rc8 {[%clk 0:01:25]} 29. Bb3 {[%clk 0:00:34]}  Nc5 {[%clk 0:01:18]} 30. Rd1 {[%clk 0:00:33]}  d3 {[%clk 0:01:13]} 31. Red2 {[%clk 0:00:19]}  Rd6 {[%clk 0:01:07]} 32. Rc1 {[%clk 0:00:17]}  Rdd8 {[%clk 0:01:04]} 33. Bc4 {[%clk 0:00:15]}  Na4 {[%clk 0:00:57]} 34. b3 {[%clk 0:00:15]}  Nc3 {[%clk 0:00:52]} 35. Kh2 {[%clk 0:00:14]}  Nxd5 {[%clk 0:00:50]} 36. Rxd3 {[%clk 0:00:14]}  Nc3 {[%clk 0:00:50]} 37. Rxd8+ {[%clk 0:00:14]}  Rxd8 {[%clk 0:00:51]} 38. a4 {[%clk 0:00:15]}  Rd2 {[%clk 0:00:44]} 39. f3 {[%clk 0:00:14]}  Ra2 {[%clk 0:00:41]} 40. Re1 {[%clk 0:00:14]}  Kf8 {[%clk 0:00:38]} 41. Re5 {[%clk 0:00:14]}  h5 {[%clk 0:00:35]} 42. Kg3 {[%clk 0:00:14]}  f6 {[%clk 0:00:22]} 43. Re6 {[%clk 0:00:13]}  Kg7 {[%clk 0:00:21]} 44. Re7+ {[%clk 0:00:13]}  Kh6 {[%clk 0:00:21]} 45. h4 {[%clk 0:00:14]}  g5 {[%clk 0:00:21]} 46. hxg5+ {[%clk 0:00:14]}  fxg5 {[%clk 0:00:19]} 47. Re6+ {[%clk 0:00:15]}  Kg7 {[%clk 0:00:20]} 48. f4 {[%clk 0:00:13]}  gxf4+ {[%clk 0:00:19]} 49. Kf3 {[%clk 0:00:14]}  Nd1 {[%clk 0:00:16]} 50. Re2 {[%clk 0:00:11]}  Ra1 {[%clk 0:00:12]} 51. Re1 {[%clk 0:00:11]}  Rc1 {[%clk 0:00:10]} 52. a5 {[%clk 0:00:11]}  Rc3+ {[%clk 0:00:05]} 53. Kxf4 {[%clk 0:00:12]}  Nb2 {[%clk 0:00:06]} 54. Bd5 {[%clk 0:00:11]}  Nd3+ {[%clk 0:00:06]} 55. Kg5 {[%clk 0:00:10]}  Nxe1 {[%clk 0:00:06]} 56. a6 {[%clk 0:00:10]}  Rc7 {[%clk 0:00:03]} 57. Bb7 {[%clk 0:00:10]}  Rc5+ {[%clk 0:00:04]} 58. Kf4 {[%clk 0:00:10]}  Ra5 {[%clk 0:00:04]} 59. Ke3 {[%clk 0:00:10]}  Nxg2+ {[%clk 0:00:03]} 60. Kd4 {[%clk 0:00:11]}  Nf4 {[%clk 0:00:02]} 61. Kc4 {[%clk 0:00:11]}  Ne6 {[%clk 0:00:02]} 62. Kxb4 {[%clk 0:00:11]}  Ra1 {[%clk 0:00:02]} 63. Kb5 {[%clk 0:00:12]}  Nc7+ {[%clk 0:00:02]} 64. Kb6 {[%clk 0:00:13]}  Nxa6 {[%clk 0:00:03]} 65. Bxa6 {[%clk 0:00:13]}  Rb1 {[%clk 0:00:03]} 66. Bc4 {[%clk 0:00:13]}  Kf6 {[%clk 0:00:03]} 67. Kc5 {[%clk 0:00:14]}  Ke5 {[%clk 0:00:03]} 68. b4 {[%clk 0:00:14]}  h4 {[%clk 0:00:04]} 69. Bd3 {[%clk 0:00:14]}  Rb2 {[%clk 0:00:03]} 70. b5 {[%clk 0:00:14]}  h3 {[%clk 0:00:03]} 71. b6 {[%clk 0:00:09]}  h2 {[%clk 0:00:04]} 72. Be4 {[%clk 0:00:10]}  Kxe4 {[%clk 0:00:03]} 73. b7 {[%clk 0:00:11]}  Rxb7 {[%clk 0:00:03]} 74. Kc6 {[%clk 0:00:11]}  Rg7 {[%clk 0:00:03]} 75. Kd6 {[%clk 0:00:12]}  h1=Q {[%clk 0:00:03]} 76. Ke6 {[%clk 0:00:13]}  Qh6# {[%clk 0:00:03]} 0-1


[Site "https://www.chess.com"]

[Event "Titled Tuesday Blitz August 15 Early 2023"]
[White "Grossboss19"]
[Black "Pakleza, Zbigniew"]
[BlackFideId "1119290"]
[WhiteElo "2537"]
[BlackElo "2826"]
[Result "1/2-1/2"]
[Round "2"]
[TimeControl "180+1"]
[Date "2023.08.15"]
[WhiteClock "0:00:09"]
[BlackClock "0:00:05"]
[Board "54"]

1. Nf3 {[%clk 0:02:55]}  d5 {[%clk 0:03:00]} 2. d4 {[%clk 0:02:50]}  c6 {[%clk 0:02:59]} 3. g3 {[%clk 0:02:45]}  Nf6 {[%clk 0:02:58]} 4. Bg2 {[%clk 0:02:46]}  Bf5 {[%clk 0:02:59]} 5. O-O {[%clk 0:02:44]}  e6 {[%clk 0:02:59]} 6. c4 {[%clk 0:02:44]}  Nbd7 {[%clk 0:02:59]} 7. Nh4 {[%clk 0:02:43]}  Be4 {[%clk 0:02:59]} 8. f3 {[%clk 0:02:41]}  Bxb1 {[%clk 0:02:57]} 9. Rxb1 {[%clk 0:02:39]}  h6 {[%clk 0:02:49]} 10. f4 {[%clk 0:02:26]}  Be7 {[%clk 0:02:37]} 11. Nf3 {[%clk 0:02:23]}  dxc4 {[%clk 0:02:08]} 12. Nd2 {[%clk 0:02:06]}  Nb6 {[%clk 0:02:04]} 13. e3 {[%clk 0:02:04]}  Nfd5 {[%clk 0:01:55]} 14. Nf3 {[%clk 0:01:43]}  c5 {[%clk 0:01:38]} 15. e4 {[%clk 0:01:19]}  Nb4 {[%clk 0:01:35]} 16. a3 {[%clk 0:01:14]}  Nd3 {[%clk 0:01:33]} 17. Be3 {[%clk 0:01:13]}  cxd4 {[%clk 0:01:33]} 18. Bxd4 {[%clk 0:01:13]}  e5 {[%clk 0:01:11]} 19. fxe5 {[%clk 0:01:08]}  Bc5 {[%clk 0:01:10]} 20. Bxc5 {[%clk 0:01:04]}  Nxc5 {[%clk 0:01:11]} 21. Qe2 {[%clk 0:00:41]}  O-O {[%clk 0:00:44]} 22. Rfd1 {[%clk 0:00:35]}  Qe7 {[%clk 0:00:41]} 23. Qe3 {[%clk 0:00:25]}  Nd3 {[%clk 0:00:27]} 24. Bf1 {[%clk 0:00:21]}  Nxe5 {[%clk 0:00:26]} 25. Nh4 {[%clk 0:00:21]}  Qg5 {[%clk 0:00:20]} 26. Qxg5 {[%clk 0:00:18]}  hxg5 {[%clk 0:00:20]} 27. Nf5 {[%clk 0:00:19]}  Rfd8 {[%clk 0:00:17]} 28. Kf2 {[%clk 0:00:18]}  g6 {[%clk 0:00:12]} 29. Ne3 {[%clk 0:00:16]}  Kf8 {[%clk 0:00:07]} 30. Rbc1 {[%clk 0:00:16]}  Rac8 {[%clk 0:00:03]} 31. Be2 {[%clk 0:00:11]}  Rxd1 {[%clk 0:00:03]} 32. Rxd1 {[%clk 0:00:11]}  Ke7 {[%clk 0:00:04]} 33. Rc1 {[%clk 0:00:11]}  f6 {[%clk 0:00:02]} 34. h4 {[%clk 0:00:10]}  gxh4 {[%clk 0:00:02]} 35. gxh4 {[%clk 0:00:11]}  Nd3+ {[%clk 0:00:02]} 36. Bxd3 {[%clk 0:00:11]}  cxd3 {[%clk 0:00:02]} 37. Rd1 {[%clk 0:00:09]}  Rd8 {[%clk 0:00:03]} 38. Ke1 {[%clk 0:00:07]}  Ke6 {[%clk 0:00:02]} 39. Kd2 {[%clk 0:00:07]}  Ke5 {[%clk 0:00:03]} 40. Rf1 {[%clk 0:00:07]}  Kxe4 {[%clk 0:00:02]} 41. Rxf6 {[%clk 0:00:07]}  Rh8 {[%clk 0:00:03]} 42. Re6+ {[%clk 0:00:07]}  Kd4 {[%clk 0:00:02]} 43. Rd6+ {[%clk 0:00:07]}  Kc5 {[%clk 0:00:02]} 44. Rxg6 {[%clk 0:00:07]}  Rxh4 {[%clk 0:00:02]} 45. Kxd3 {[%clk 0:00:07]}  Rh3 {[%clk 0:00:03]} 46. Rg5+ {[%clk 0:00:07]}  Kc6 {[%clk 0:00:04]} 47. Rg6+ {[%clk 0:00:08]}  Kb5 {[%clk 0:00:04]} 48. Kd4 {[%clk 0:00:04]}  Ka4 {[%clk 0:00:04]} 49. Rg7 {[%clk 0:00:04]}  Rh4+ {[%clk 0:00:03]} 50. Kd3 {[%clk 0:00:04]}  Rh3 {[%clk 0:00:03]} 51. Kd4 {[%clk 0:00:05]}  Kb3 {[%clk 0:00:02]} 52. Rxb7 {[%clk 0:00:04]}  Kxb2 {[%clk 0:00:03]} 53. Nc4+ {[%clk 0:00:04]}  Ka2 {[%clk 0:00:01]} 54. Nxb6 {[%clk 0:00:04]}  axb6 {[%clk 0:00:01]} 55. Rxb6 {[%clk 0:00:05]}  Kxa3 {[%clk 0:00:02]} 56. Kc5 {[%clk 0:00:06]}  Ka4 {[%clk 0:00:01]} 57. Ra6+ {[%clk 0:00:05]}  Kb3 {[%clk 0:00:01]} 58. Rb6+ {[%clk 0:00:06]}  Kc3 {[%clk 0:00:02]} 59. Kc6 {[%clk 0:00:07]}  Kc4 {[%clk 0:00:02]} 60. Kb7 {[%clk 0:00:07]}  Kc5 {[%clk 0:00:02]} 61. Rb1 {[%clk 0:00:06]}  Rh7+ {[%clk 0:00:01]} 62. Kc8 {[%clk 0:00:07]}  Rh6 {[%clk 0:00:02]} 63. Rc1+ {[%clk 0:00:07]}  Kb6 {[%clk 0:00:03]} 64. Rb1+ {[%clk 0:00:07]}  Kc6 {[%clk 0:00:03]} 65. Rc1+ {[%clk 0:00:08]}  Kb6 {[%clk 0:00:04]} 66. Rb1+ {[%clk 0:00:08]}  Kc6 {[%clk 0:00:04]} 67. Rc1+ {[%clk 0:00:09]}  Kb6 {[%clk 0:00:05]} 1/2-1/2


[Site "https://www.chess.com"]

[Event "Titled Tuesday Blitz August 15 Early 2023"]
[White "Putnam, Liam"]
[Black "MaryanKyrychenko"]
[WhiteFideId "30938279"]
[WhiteElo "2824"]
[BlackElo "2536"]
[Result "0-1"]
[Round "2"]
[TimeControl "180+1"]
[Date "2023.08.15"]
[WhiteClock "0:00:43"]
[BlackClock "0:00:12"]
[Board "55"]

1. e4 {[%clk 0:02:32]}  c5 {[%clk 0:02:59]} 2. Nf3 {[%clk 0:02:32]}  d6 {[%clk 0:02:59]} 3. c3 {[%clk 0:02:29]}  Nf6 {[%clk 0:02:57]} 4. h3 {[%clk 0:02:28]}  g6 {[%clk 0:02:57]} 5. Be2 {[%clk 0:02:24]}  Bg7 {[%clk 0:02:57]} 6. O-O {[%clk 0:02:24]}  O-O {[%clk 0:02:57]} 7. d3 {[%clk 0:02:25]}  Nc6 {[%clk 0:02:57]} 8. Re1 {[%clk 0:02:25]}  b5 {[%clk 0:02:47]} 9. d4 {[%clk 0:02:23]}  a6 {[%clk 0:02:40]} 10. a4 {[%clk 0:02:19]}  b4 {[%clk 0:02:14]} 11. Bd3 {[%clk 0:02:09]}  Bb7 {[%clk 0:02:09]} 12. Be3 {[%clk 0:02:05]}  Nd7 {[%clk 0:01:54]} 13. Nbd2 {[%clk 0:02:03]}  Qc7 {[%clk 0:01:50]} 14. Rc1 {[%clk 0:01:58]}  a5 {[%clk 0:01:46]} 15. Bb5 {[%clk 0:01:54]}  Rac8 {[%clk 0:01:32]} 16. Nb3 {[%clk 0:01:46]}  bxc3 {[%clk 0:01:06]} 17. bxc3 {[%clk 0:01:40]}  Na7 {[%clk 0:01:03]} 18. Bxd7 {[%clk 0:01:26]}  Qxd7 {[%clk 0:01:04]} 19. dxc5 {[%clk 0:01:27]}  Bxe4 {[%clk 0:00:54]} 20. cxd6 {[%clk 0:01:27]}  exd6 {[%clk 0:00:51]} 21. Nc5 {[%clk 0:01:19]}  Rxc5 {[%clk 0:00:45]} 22. Bxc5 {[%clk 0:01:19]}  Bxf3 {[%clk 0:00:45]} 23. Qxd6 {[%clk 0:01:19]}  Qxd6 {[%clk 0:00:44]} 24. Bxd6 {[%clk 0:01:20]}  Bd5 {[%clk 0:00:42]} 25. Bxf8 {[%clk 0:01:20]}  Bxf8 {[%clk 0:00:43]} 26. Rcd1 {[%clk 0:01:15]}  Bb3 {[%clk 0:00:40]} 27. Rd8 {[%clk 0:01:13]}  Kg7 {[%clk 0:00:38]} 28. Ree8 {[%clk 0:01:13]}  Bc5 {[%clk 0:00:37]} 29. Rg8+ {[%clk 0:01:11]}  Kh6 {[%clk 0:00:35]} 30. Rb8 {[%clk 0:01:12]}  Bxa4 {[%clk 0:00:34]} 31. Rgc8 {[%clk 0:01:10]}  Bd6 {[%clk 0:00:31]} 32. Rd8 {[%clk 0:00:57]}  Bxb8 {[%clk 0:00:31]} 33. Rxb8 {[%clk 0:00:58]}  Nc6 {[%clk 0:00:29]} 34. Rb6 {[%clk 0:00:57]}  Ne5 {[%clk 0:00:27]} 35. Kf1 {[%clk 0:00:52]}  Nc4 {[%clk 0:00:26]} 36. Rb8 {[%clk 0:00:52]}  Bc2 {[%clk 0:00:21]} 37. Ke2 {[%clk 0:00:52]}  a4 {[%clk 0:00:22]} 38. Ra8 {[%clk 0:00:51]}  a3 {[%clk 0:00:21]} 39. h4 {[%clk 0:00:48]}  Bb1 {[%clk 0:00:13]} 40. Kd1 {[%clk 0:00:48]}  a2 {[%clk 0:00:13]} 41. Kc1 {[%clk 0:00:48]}  Kh5 {[%clk 0:00:13]} 42. Ra4 {[%clk 0:00:47]}  Ne5 {[%clk 0:00:12]} 43. f3 {[%clk 0:00:39]}  f5 {[%clk 0:00:10]} 44. Kb2 {[%clk 0:00:38]}  Nd3+ {[%clk 0:00:10]} 45. Ka1 {[%clk 0:00:39]}  Ne1 {[%clk 0:00:10]} 46. g4+ {[%clk 0:00:34]}  fxg4 {[%clk 0:00:10]} 47. fxg4+ {[%clk 0:00:35]}  Kxh4 {[%clk 0:00:10]} 48. Kb2 {[%clk 0:00:32]}  Nc2 {[%clk 0:00:06]} 49. c4 {[%clk 0:00:33]}  a1=Q+ {[%clk 0:00:07]} 50. Rxa1 {[%clk 0:00:34]}  Nxa1 {[%clk 0:00:07]} 51. c5 {[%clk 0:00:35]}  Be4 {[%clk 0:00:07]} 52. Kxa1 {[%clk 0:00:35]}  Kxg4 {[%clk 0:00:07]} 53. Kb2 {[%clk 0:00:36]}  Bc6 {[%clk 0:00:07]} 54. Kc3 {[%clk 0:00:37]}  h5 {[%clk 0:00:08]} 55. Kd4 {[%clk 0:00:37]}  h4 {[%clk 0:00:09]} 56. Ke5 {[%clk 0:00:38]}  h3 {[%clk 0:00:09]} 57. Kd6 {[%clk 0:00:39]}  Bf3 {[%clk 0:00:10]} 58. c6 {[%clk 0:00:40]}  Bxc6 {[%clk 0:00:10]} 59. Kxc6 {[%clk 0:00:41]}  h2 {[%clk 0:00:10]} 60. Kd6 {[%clk 0:00:41]}  h1=Q {[%clk 0:00:11]} 61. Ke6 {[%clk 0:00:42]}  Kh5 {[%clk 0:00:11]} 62. Kf6 {[%clk 0:00:42]}  g5 {[%clk 0:00:12]} 63. Kg7 {[%clk 0:00:43]}  g4 {[%clk 0:00:12]} 0-1


[Site "https://www.chess.com"]

[Event "Titled Tuesday Blitz August 15 Early 2023"]
[White "Toropov, Pavel"]
[Black "Salinas Herrera, Pablo"]
[WhiteFideId "24129178"]
[BlackFideId "3407128"]
[WhiteElo "2535"]
[BlackElo "2822"]
[Result "0-1"]
[Round "2"]
[TimeControl "180+1"]
[Date "2023.08.15"]
[WhiteClock "0:00:00"]
[BlackClock "0:01:40"]
[Board "56"]

1. e4 {[%clk 0:03:00]}  c5 {[%clk 0:02:58]} 2. Nf3 {[%clk 0:03:01]}  e6 {[%clk 0:02:58]} 3. d4 {[%clk 0:03:00]}  cxd4 {[%clk 0:02:59]} 4. Nxd4 {[%clk 0:03:01]}  a6 {[%clk 0:03:00]} 5. Nc3 {[%clk 0:03:01]}  Qc7 {[%clk 0:03:01]} 6. Qf3 {[%clk 0:03:01]}  d6 {[%clk 0:03:01]} 7. Qg3 {[%clk 0:03:00]}  Nd7 {[%clk 0:03:02]} 8. f4 {[%clk 0:02:53]}  g6 {[%clk 0:03:02]} 9. f5 {[%clk 0:02:47]}  Ne5 {[%clk 0:03:00]} 10. fxe6 {[%clk 0:02:19]}  fxe6 {[%clk 0:02:58]} 11. Bg5 {[%clk 0:02:18]}  Bg7 {[%clk 0:02:51]} 12. O-O-O {[%clk 0:02:17]}  Nf6 {[%clk 0:02:51]} 13. Qh3 {[%clk 0:02:08]}  Qe7 {[%clk 0:02:47]} 14. Be2 {[%clk 0:02:04]}  O-O {[%clk 0:02:38]} 15. Rhf1 {[%clk 0:02:02]}  Bd7 {[%clk 0:02:37]} 16. Rf2 {[%clk 0:01:42]}  Nf7 {[%clk 0:02:19]} 17. Bh4 {[%clk 0:00:56]}  Rac8 {[%clk 0:01:46]} 18. Rdf1 {[%clk 0:00:39]}  g5 {[%clk 0:01:47]} 19. Bg3 {[%clk 0:00:20]}  Rxc3 {[%clk 0:01:47]} 20. bxc3 {[%clk 0:00:18]}  Nxe4 {[%clk 0:01:48]} 21. Rxf7 {[%clk 0:00:16]}  Rxf7 {[%clk 0:01:47]} 22. Rxf7 {[%clk 0:00:16]}  Qxf7 {[%clk 0:01:47]} 23. Bd3 {[%clk 0:00:13]}  e5 {[%clk 0:01:42]} 24. Bc4 {[%clk 0:00:02]}  d5 {[%clk 0:01:42]} 25. Bxd5 {[%clk 0:00:02]}  Qxd5 {[%clk 0:01:42]} 26. Qh5 {[%clk 0:00:00]}  exd4 {[%clk 0:01:40]} 0-1


[Site "https://www.chess.com"]

[Event "Titled Tuesday Blitz August 15 Early 2023"]
[White "Molina, Roberto Junio Brito"]
[Black "Benedetti, Julio"]
[WhiteFideId "2109450"]
[BlackFideId "172545"]
[WhiteElo "2807"]
[BlackElo "2534"]
[Result "1-0"]
[Round "2"]
[TimeControl "180+1"]
[Date "2023.08.15"]
[WhiteClock "0:01:04"]
[BlackClock "0:00:00"]
[Board "58"]

1. d4 {[%clk 0:03:00]}  Nf6 {[%clk 0:03:00]} 2. c4 {[%clk 0:03:00]}  c5 {[%clk 0:02:59]} 3. d5 {[%clk 0:03:00]}  b5 {[%clk 0:02:59]} 4. cxb5 {[%clk 0:03:01]}  a6 {[%clk 0:03:00]} 5. b6 {[%clk 0:03:01]}  d6 {[%clk 0:02:57]} 6. Nc3 {[%clk 0:03:02]}  g6 {[%clk 0:02:57]} 7. e4 {[%clk 0:03:01]}  Nbd7 {[%clk 0:02:55]} 8. Nf3 {[%clk 0:03:01]}  Qxb6 {[%clk 0:02:55]} 9. Be2 {[%clk 0:03:01]}  Bg7 {[%clk 0:02:55]} 10. O-O {[%clk 0:03:01]}  O-O {[%clk 0:02:55]} 11. Nd2 {[%clk 0:03:00]}  a5 {[%clk 0:02:37]} 12. a4 {[%clk 0:02:58]}  Ba6 {[%clk 0:02:28]} 13. Re1 {[%clk 0:02:56]}  Ne5 {[%clk 0:02:24]} 14. Bb5 {[%clk 0:02:51]}  Bxb5 {[%clk 0:02:10]} 15. axb5 {[%clk 0:02:51]}  Ne8 {[%clk 0:01:55]} 16. Qe2 {[%clk 0:02:42]}  Nc7 {[%clk 0:01:50]} 17. f4 {[%clk 0:02:29]}  c4+ {[%clk 0:01:15]} 18. Kf1 {[%clk 0:02:29]}  Nd3 {[%clk 0:01:12]} 19. Nxc4 {[%clk 0:02:29]}  Qd4 {[%clk 0:01:12]} 20. Rd1 {[%clk 0:02:17]}  Nxc1 {[%clk 0:00:49]} 21. Raxc1 {[%clk 0:02:18]}  Qc5 {[%clk 0:00:44]} 22. Na4 {[%clk 0:02:09]}  Qxb5 {[%clk 0:00:42]} 23. Ncb6 {[%clk 0:02:08]}  Ra7 {[%clk 0:00:31]} 24. Rc6 {[%clk 0:02:01]}  Rb8 {[%clk 0:00:27]} 25. Rdc1 {[%clk 0:02:00]}  Qxe2+ {[%clk 0:00:16]} 26. Kxe2 {[%clk 0:02:01]}  Ne8 {[%clk 0:00:16]} 27. Rc8 {[%clk 0:01:46]}  Rab7 {[%clk 0:00:16]} 28. Rxb8 {[%clk 0:01:41]}  Rxb8 {[%clk 0:00:17]} 29. Rc8 {[%clk 0:01:41]}  Rxc8 {[%clk 0:00:15]} 30. Nxc8 {[%clk 0:01:42]}  Bd4 {[%clk 0:00:12]} 31. Nxe7+ {[%clk 0:01:40]}  Kf8 {[%clk 0:00:13]} 32. Nc6 {[%clk 0:01:41]}  Bg1 {[%clk 0:00:13]} 33. h3 {[%clk 0:01:36]}  Nc7 {[%clk 0:00:13]} 34. Nxa5 {[%clk 0:01:31]}  f5 {[%clk 0:00:13]} 35. Kf3 {[%clk 0:01:29]}  Nb5 {[%clk 0:00:09]} 36. exf5 {[%clk 0:01:28]}  gxf5 {[%clk 0:00:09]} 37. g4 {[%clk 0:01:27]}  Kf7 {[%clk 0:00:07]} 38. Nc6 {[%clk 0:01:24]}  Kf6 {[%clk 0:00:05]} 39. Nc3 {[%clk 0:01:23]}  Nc7 {[%clk 0:00:00]} 40. g5+ {[%clk 0:01:04]} 1-0


[Site "https://www.chess.com"]